{"text_format":"1","workbook":"xlsx","n_sheets":1,"sheets":["Лист1"],"not_rendered":{"charts":0,"images":0,"macros":1,"external_links":0,"defined_names":0,"comments":0,"pivot_tables":0},"unopened":[],"bounds":{"document_bytes":16777216,"sheet_cells":100000,"rows_first":2000,"rows_last":500,"rows_between":2000,"halvings":0,"cell_chars":16384,"cell_head_chars":4096},"cells_cut":0,"cells_raw":0,"read":"whole","date_system":"1900"}

{"sheet":"Лист1","index":0,"n_rows":15,"n_cols":26,"rows_kept":15,"cut":false,"hidden":false,"merged":[]}
["ID","Код","Наименование","Примечание","Цена","Гарантия (мес.)","Описание","Адрес главного изображения","Адреса дополнительных изображений","Дата прихода","Наличие (розница)","Наличие (опт)","Под заказ (1-2 дня)",null,null,null,null,null,null,null,null,null,null,null,"Вариант 1","Вариант 2"]
[326,"ST3500320NS","Жесткий диск  Seagate 500 Gb 7200 Serial ATA ES 32 Mb (ST3500320NS)",null,36.49,12,null,"https://b2b.gbm.com.ua/imgb.php?id=326&large=1",null,null,1,1,0,null,null,null,null,null,null,null,null,null,null,"Жесткий диск",{"$f":"d(C2)","v":"Жесткий диск  "},{"$f":"TRIM(LEFT(C2,MIN(IF(IFERROR((CODE(MID(C2,ROW($A$1:$A$99),1))<192)*(MID(C2,ROW($A$1:$A$99),1)<>\" \"),0),ROW($A$1:$A$99),99))-1))","v":"Жесткий диск"}]
[542,"910-000199","Мышь Logitech RX250 Black (910-000199)",null,9.58,24,"Характеристики Logitech RX250 Optical USB&PS/2 Black (910-000199) Назначение\tдля компьютера Тип устройства\tМышь Соединение с ПК\tПроводное Тип сенсора\tОптический Функциональные характеристики Разрешение\t1000 dpi Количество кнопок\t2 Количество колес прокрутки\t1 (колесо-кнопка) Интерфейс Интерфейс подключения\tUSB и PS/2 Прочие характеристики Подходит для левшей\t+ Дополнительные характеристики Цвет: черный Особенности: технология Tilt Wheel Plus Zoom™ для вертикальной и горизонтальной прокрутки","https://b2b.gbm.com.ua/imgb.php?id=542&large=1",null,null,1,0,0,null,null,null,null,null,null,null,null,null,null,"Мышь",{"$f":"d(C3)","v":"Мышь "},{"$f":"TRIM(LEFT(C3,MIN(IF(IFERROR((CODE(MID(C3,ROW($A$1:$A$99),1))<192)*(MID(C3,ROW($A$1:$A$99),1)<>\" \"),0),ROW($A$1:$A$99),99))-1))","v":"Мышь"}]
[543,"910-000185","Мышь Logitech RX250 Sea Grey (910-000185)",null,8.6300000000000008,24,"Характеристики Logitech RX250 Optical USB&PS/2 SeaGrey (910-000185) Назначение\tдля компьютера Тип устройства\tМышь Соединение с ПК\tПроводное Тип сенсора\tОптический Функциональные характеристики Разрешение\t1000 dpi Количество кнопок\t2 Количество колес прокрутки\t1 (колесо-кнопка) Интерфейс Интерфейс подключения\tUSB и PS/2 Дополнительные характеристики Цвет: белый Особенности: технология Tilt Wheel Plus Zoom™ для вертикальной и горизонтальной прокрутки","https://b2b.gbm.com.ua/imgb.php?id=543&large=1",null,null,1,0,1,null,null,null,null,null,null,null,null,null,null,null,"Мышь ",{"$f":"TRIM(LEFT(C4,MIN(IF(IFERROR((CODE(MID(C4,ROW($A$1:$A$99),1))<192)*(MID(C4,ROW($A$1:$A$99),1)<>\" \"),0),ROW($A$1:$A$99),99))-1))","v":"Мышь"}]
[657,"980-000029","Акустика Logitech S150 Digital USB Speaker System (980-000029) OEM",null,16.12,24,"<table class=tx_full  itemprop= description > <tr> <td class= op > Тип </td> <td>колонки 2,0</td> </tr> <tr> <td class= op > Выходная мощность колонок, Вт </td> <td>2х0,6</td> </tr> <tr> <td class= op > Выходная мощность сабвуфера, Вт </td> <td>-</td> </tr> <tr> <td class= op > Частотный диапазон системы, Гц </td> <td>90-20000</td> </tr> <tr> <td class= op > Частотный диапазон сабвуфера, Гц </td> <td>-</td> </tr> <tr> <td class= op > Отношение сигнал/шум, дБ </td> <td>н,д.</td> </tr> <tr> <td class= op > Материал корпуса колонок </td> <td>пластик</td> </tr> <tr> <td class= op > Материал корпуса сабвуфера </td> <td>-</td> </tr> <tr> <td class= op > Цвет </td> <td>черный</td> </tr> <tr><th colspan= 2 >Оснащение</th></tr> <tr> <td class= op > Пульт ДУ </td> <td>-</td> </tr> <tr> <td class= op > Регулировка тембра </td> <td>-</td> </tr> <tr> <td class= op > Декодер </td> <td>-</td> </tr> <tr> <td class= op > Входы </td> <td>USB</td> </tr> <tr> <td class= op > Выход на наушники </td> <td>н,д.</td> </tr> <tr><th colspan= 2 >Размеры и масса</th></tr> <tr> <td class= op > Размеры фронтальных колонок, мм </td> <td>н,д.</td> </tr> <tr> <td class= op > Размеры тыловых колонок, мм </td> <td>-</td> </tr> <tr> <td class= op > Размеры центральной колонки, мм </td> <td>-</td> </tr> <tr> <td class= op > Размеры сабвуфера, мм </td> <td>-</td> </tr> <tr> <td class= op > Масса, кг </td> <td>н,д.</td> </tr> <tr><th colspan= 2 >Дополнительно</th></tr> <tr> <td colspan= 2 > <a class= link feedback-product-mistake  href= /feedback/?type=3&comment=http://hotline,ua/computer-multimedijnaya-akustika/logitech_s150/  rel= nofollow >Сообщить об ошибке в описании</a> </td> </tr> <tr> <td colspan= 2  class= info > Характеристики Logitech S150 и комплектация товара могут изменяться производителем без уведомления, </td> </tr> </table> ","https://b2b.gbm.com.ua/imgb.php?id=657&large=1",null,null,1,0,1,null,null,null,null,null,null,null,null,null,null,null,"Акустика ",{"$f":"TRIM(LEFT(C5,MIN(IF(IFERROR((CODE(MID(C5,ROW($A$1:$A$99),1))<192)*(MID(C5,ROW($A$1:$A$99),1)<>\" \"),0),ROW($A$1:$A$99),99))-1))","v":"Акустика"}]
[997,31300697110,"Клавиатура Genius SlimStar 110 PS/2 (31300697110)",null,7.68,12,"Характеристики Genius SlimStar 110 PS/2 Black (31300697110) Тип\tклавиатура Соединение с ПК\tпроводное Интерфейс подключения\tPS/2 Клавиатура Формат\tполноразмерная Тип клавиатуры\tстандартная Конструкция клавиатуры\tмембранная Размеры клавиатуры\t445 х 168 х 23 мм Вес\t520 г Дополнительные характеристики Защита от случайного пролива воды Бесшумное нажатие клавиш Низкопрофильные клавиши с тактильной отдачей","https://b2b.gbm.com.ua/imgb.php?id=997&large=1",null,null,1,0,0,null,null,null,null,null,null,null,null,null,null,null,"Клавиатура ",{"$f":"TRIM(LEFT(C6,MIN(IF(IFERROR((CODE(MID(C6,ROW($A$1:$A$99),1))<192)*(MID(C6,ROW($A$1:$A$99),1)<>\" \"),0),ROW($A$1:$A$99),99))-1))","v":"Клавиатура"}]
[1022,"981-000100","Наушники Logitech PC 960 Stereo Headset USB OEM",null,24,24,"Технические характеристики: Тип наушников\tПолузакрытые Тип подключения\tПроводное Интерфейс проводного подключения\t1 x USB Диапазон частот наушников\t20 - 20000 Гц Чувствительность наушников\t65 дБ Тип микрофона\tДинамический Конструкция микрофона\tПоворотный Направленность микрофона\tОднонаправленный Диапазон частот микрофона\t100 - 16000 Гц Чувствительность микрофона\t0 дБ Кабель\tОдносторонний Дополнительные возможности\tАктивное шумоподавление Длина шнура\t2,5 м","https://b2b.gbm.com.ua/imgb.php?id=1022&large=1","https://b2b.gbm.com.ua/imgp.php?id=12041&large=1.https://b2b.gbm.com.ua/imgp.php?id=12042&large=1",null,1,0,1,null,null,null,null,null,null,null,null,null,null,null,"Наушники ",{"$f":"TRIM(LEFT(C7,MIN(IF(IFERROR((CODE(MID(C7,ROW($A$1:$A$99),1))<192)*(MID(C7,ROW($A$1:$A$99),1)<>\" \"),0),ROW($A$1:$A$99),99))-1))","v":"Наушники"}]
[2758,31710037100,"Наушники Genius HS-02B ",null,4.26,12,"Характеристики: Тип:Гарнитура Способ передачи звука:Проводной Тип конструкции:Накладные Тип крепления:Оголовье Тип излучателя:Динамические Частотный диапазон:20-20000 Гц Сопротивление:32 Ом Микрофон Микрофон:на наушнике Частотный диапазон микрофона:80 - 16000 Гц Чувствительность микрофона:-58 ± 3 дБ Цвет:black/silver","https://b2b.gbm.com.ua/imgb.php?id=2758&large=1","https://b2b.gbm.com.ua/imgp.php?id=11879&large=1.https://b2b.gbm.com.ua/imgp.php?id=11880&large=1",null,1,0,0,null,null,null,null,null,null,null,null,null,null,null,"Наушники ",{"$f":"TRIM(LEFT(C8,MIN(IF(IFERROR((CODE(MID(C8,ROW($A$1:$A$99),1))<192)*(MID(C8,ROW($A$1:$A$99),1)<>\" \"),0),ROW($A$1:$A$99),99))-1))","v":"Наушники"}]
[3283,"TF-5 beech","Акустика Gemix TF-5 Beech 2,0 стерео мощность 10 Вт (сателлиты 2х5 Вт) экранирование, дерево",null,16.5,12,"<table class=tx_full  itemprop= description > <tr> <td class= op > Тип </td> <td>колонки 2,0</td> </tr> <tr> <td class= op > Выходная мощность колонок, Вт </td> <td>2х5</td> </tr> <tr> <td class= op > Выходная мощность сабвуфера, Вт </td> <td>-</td> </tr> <tr> <td class= op > Частотный диапазон системы, Гц </td> <td>н,д.</td> </tr> <tr> <td class= op > Частотный диапазон сабвуфера, Гц </td> <td>-</td> </tr> <tr> <td class= op > Отношение сигнал/шум, дБ </td> <td>60</td> </tr> <tr> <td class= op > Материал корпуса колонок </td> <td>дерево</td> </tr> <tr> <td class= op > Материал корпуса сабвуфера </td> <td>-</td> </tr> <tr> <td class= op > Цвет </td> <td>серебро/черный/бук/вишня/темный орех</td> </tr> <tr><th colspan= 2 >Оснащение</th></tr> <tr> <td class= op > Пульт ДУ </td> <td>-</td> </tr> <tr> <td class= op > Регулировка тембра </td> <td>-</td> </tr> <tr> <td class= op > Декодер </td> <td>-</td> </tr> <tr> <td class= op > Входы </td> <td>стереовход типа RCA</td> </tr> <tr> <td class= op > Выход на наушники </td> <td>-</td> </tr> <tr><th colspan= 2 >Размеры и масса</th></tr> <tr> <td class= op > Размеры фронтальных колонок, мм </td> <td>180х110х120</td> </tr> <tr> <td class= op > Размеры тыловых колонок, мм </td> <td>-</td> </tr> <tr> <td class= op > Размеры центральной колонки, мм </td> <td>-</td> </tr> <tr> <td class= op > Размеры сабвуфера, мм </td> <td>-</td> </tr> <tr> <td class= op > Масса, кг </td> <td>н,д.</td> </tr> <tr><th colspan= 2 >Дополнительно</th></tr> <tr> <td class= op > : </td> <td>-</td> </tr> <tr> <td colspan= 2 > <a class= link feedback-product-mistake  href= /feedback/?type=3&comment=http://hotline,ua/computer-multimedijnaya-akustika/gemix_tf-5/  rel= nofollow >Сообщить об ошибке в описании</a> </td> </tr> <tr> <td colspan= 2  class= info > Характеристики Gemix TF-5 и комплектация товара могут изменяться производителем без уведомления, </td> </tr> </table> ","https://b2b.gbm.com.ua/imgb.php?id=3283&large=1",null,null,1,0,0,null,null,null,null,null,null,null,null,null,null,null,"Акустика ",{"$f":"TRIM(LEFT(C9,MIN(IF(IFERROR((CODE(MID(C9,ROW($A$1:$A$99),1))<192)*(MID(C9,ROW($A$1:$A$99),1)<>\" \"),0),ROW($A$1:$A$99),99))-1))","v":"Акустика"}]
[3285,"TF-5 black","Акустика молекулярная TF-5 Black 2,0 стерео мощность 10 Вт (сателлиты 2х5 Вт) экранирование, дерево",null,17,12,"<table class=tx_full  itemprop= description > <tr> <td class= op > Тип </td> <td>колонки 2,0</td> </tr> <tr> <td class= op > Выходная мощность колонок, Вт </td> <td>2х5</td> </tr> <tr> <td class= op > Выходная мощность сабвуфера, Вт </td> <td>-</td> </tr> <tr> <td class= op > Частотный диапазон системы, Гц </td> <td>н,д.</td> </tr> <tr> <td class= op > Частотный диапазон сабвуфера, Гц </td> <td>-</td> </tr> <tr> <td class= op > Отношение сигнал/шум, дБ </td> <td>60</td> </tr> <tr> <td class= op > Материал корпуса колонок </td> <td>дерево</td> </tr> <tr> <td class= op > Материал корпуса сабвуфера </td> <td>-</td> </tr> <tr> <td class= op > Цвет </td> <td>серебро/черный/бук/вишня/темный орех</td> </tr> <tr><th colspan= 2 >Оснащение</th></tr> <tr> <td class= op > Пульт ДУ </td> <td>-</td> </tr> <tr> <td class= op > Регулировка тембра </td> <td>-</td> </tr> <tr> <td class= op > Декодер </td> <td>-</td> </tr> <tr> <td class= op > Входы </td> <td>стереовход типа RCA</td> </tr> <tr> <td class= op > Выход на наушники </td> <td>-</td> </tr> <tr><th colspan= 2 >Размеры и масса</th></tr> <tr> <td class= op > Размеры фронтальных колонок, мм </td> <td>180х110х120</td> </tr> <tr> <td class= op > Размеры тыловых колонок, мм </td> <td>-</td> </tr> <tr> <td class= op > Размеры центральной колонки, мм </td> <td>-</td> </tr> <tr> <td class= op > Размеры сабвуфера, мм </td> <td>-</td> </tr> <tr> <td class= op > Масса, кг </td> <td>н,д.</td> </tr> <tr><th colspan= 2 >Дополнительно</th></tr> <tr> <td class= op > : </td> <td>-</td> </tr> <tr> <td colspan= 2 > <a class= link feedback-product-mistake  href= /feedback/?type=3&comment=http://hotline,ua/computer-multimedijnaya-akustika/gemix_tf-5/  rel= nofollow >Сообщить об ошибке в описании</a> </td> </tr> <tr> <td colspan= 2  class= info > Характеристики Gemix TF-5 и комплектация товара могут изменяться производителем без уведомления, </td> </tr> </table> ","https://b2b.gbm.com.ua/imgb.php?id=3285&large=1",null,null,1,0,1,null,null,null,null,null,null,null,null,null,null,null,"Акустика молекулярная ",{"$f":"TRIM(LEFT(C10,MIN(IF(IFERROR((CODE(MID(C10,ROW($A$1:$A$99),1))<192)*(MID(C10,ROW($A$1:$A$99),1)<>\" \"),0),ROW($A$1:$A$99),99))-1))","v":"Акустика молекулярная"}]
[3484,"X-710MK","Мышь A4-Tech X-710MK Black USB",null,13.73,12,"<table class=tx_full  itemprop= description > <tr> <td class= op > Тип манипулятора </td> <td>мышь</td> </tr> <tr> <td class= op > Назначение </td> <td>для игр</td> </tr> <tr> <td class= op > Подключение </td> <td>проводное</td> </tr> <tr> <td class= op > Интерфейс коммуникации с ПК </td> <td>USB</td> </tr> <tr> <td class= op > Питание манипулятора (для беспроводных) </td> <td>-</td> </tr> <tr> <td class= op > Цвет корпуса </td> <td>черный</td> </tr> <tr><th colspan= 2 >Клавиатура</th></tr> <tr> <td class= op > Тип клавиатуры </td> <td>-</td> </tr> <tr> <td class= op > Количество дополнительных клавиш </td> <td>-</td> </tr> <tr> <td class= op > Манипулятор прокрутки </td> <td>-</td> </tr> <tr> <td class= op > Цвет символов кириллицы </td> <td>-</td> </tr> <tr> <td class= op > Подсветка клавиш </td> <td>-</td> </tr> <tr><th colspan= 2 >Мышь</th></tr> <tr> <td class= op > Тип сенсора </td> <td>оптический</td> </tr> <tr> <td class= op > Количество кнопок </td> <td>7</td> </tr> <tr> <td class= op > Разрешение, dpi </td> <td>2000</td> </tr> <tr> <td class= op > Количество колесиков прокрутки </td> <td>1</td> </tr> <tr> <td class= op > Прокрутка вертикальная/горизонтальная </td> <td>+/-</td> </tr> <tr> <td class= op > Дополнительно </td> <td>-</td> </tr> <tr><th colspan= 2 >Общая информация</th></tr> <tr> <td class= op > Габариты, мм </td> <td>н,д.</td> </tr> <tr> <td class= op > Масса, г </td> <td>н,д.</td> </tr> <tr> <td class= op > Радиус действия радиоканала, м </td> <td>-</td> </tr> <tr> <td class= op > Приемник (размер) </td> <td>-</td> </tr> <tr> <td class= op > Дополнительно </td> <td>-</td> </tr> <tr> <td colspan= 2  class= info > Характеристики A4Tech X-710MK и комплектация товара могут изменяться производителем без уведомления, </td> </tr> </table> ","https://b2b.gbm.com.ua/imgb.php?id=3484&large=1",null,null,1,0,1,null,null,null,null,null,null,null,null,null,null,null,"Мышь ",{"$f":"TRIM(LEFT(C11,MIN(IF(IFERROR((CODE(MID(C11,ROW($A$1:$A$99),1))<192)*(MID(C11,ROW($A$1:$A$99),1)<>\" \"),0),ROW($A$1:$A$99),99))-1))","v":"Мышь"}]
[3489,"X-738K","Мышь A4-Tech X-738K Black USB",null,16,12,"<table class=boom_pd_properties ><tbody><tr><th colspan= 2  class= boom_pd_title >Общие характеристики</th></tr><tr><th class= boom_pd_label boom_pd_label_title ><span>Комплектация</span></th><td class= boom_pd_value >мышь</td></tr><tr><th class= boom_pd_label boom_pd_label_title ><span>Назначение</span></th><td class= boom_pd_value >настольный компьютер</td></tr><tr><th class= boom_pd_label boom_pd_label_title ><span>Интерфейс подключения</span></th><td class= boom_pd_value >USB</td></tr><tr><th class= boom_pd_label boom_pd_label_title ><span>Цвет</span></th><td class= boom_pd_value >черный</td></tr><tr><th colspan= 2  class= boom_pd_title >Мышь</th></tr><tr><th class= boom_pd_label boom_pd_label_title ><span>Тип</span></th><td class= boom_pd_value >оптическая лазерная</td></tr><tr><th class= boom_pd_label boom_pd_label_title ><span>Дизайн</span></th><td class= boom_pd_value >для правой руки</td></tr><tr><th class= boom_pd_label boom_pd_label_title ><span>Колесо прокрутки</span></th><td class= boom_pd_value >есть</td></tr><tr><th class= boom_pd_label boom_pd_label_title ><span>Количество клавиш</span></th><td class= boom_pd_value >7</td></tr><tr><th class= boom_pd_label boom_pd_label_title ><span>Количество программируемых клавиш</span></th><td class= boom_pd_value >2</td></tr><tr><th class= boom_pd_label boom_pd_label_title ><span>Разрешение оптического сенсора</span></th><td class= boom_pd_value >3200 dpi</td></tr><tr><th colspan= 2  class= boom_pd_title >Дополнительно</th></tr><tr><th class= boom_pd_label boom_pd_label_title ><span>Особенности</span></th><td class= boom_pd_value >разрешение:600/800/1200/1600/2400/3200 dpi; встроенная память - 16 Кб для сохранения настроек при программировании кнопок мыши</td></tr></tbody></table> ","https://b2b.gbm.com.ua/imgb.php?id=3489&large=1",null,null,1,0,1,null,null,null,null,null,null,null,null,null,null,null,"Мышь ",{"$f":"TRIM(LEFT(C12,MIN(IF(IFERROR((CODE(MID(C12,ROW($A$1:$A$99),1))<192)*(MID(C12,ROW($A$1:$A$99),1)<>\" \"),0),ROW($A$1:$A$99),99))-1))","v":"Мышь"}]
[3937,"MK-650-BL","Наушники A4-Tech MK-650-BL Blue",null,4.46,12,"Тип\tВкладыши Частотный диапазон\t20 Гц - 20 000 Гц Сопротивление динамика\t32 Ом Чувствительность наушника\t102 ± 1 дБ Разъем\t3,5 мм Длина кабеля\t1,4 м Вес\t14 г K-650 A4tech - это металлические наушники с резиновыми вкладками, Ультралегкие и эргономичные, Неодимовый динамик обеспечивают глубокий бас, Идеально подходят для MP3-плеера, iPod, iPhone, мобильного телефона, смартфона.","https://b2b.gbm.com.ua/imgb.php?id=3937&large=1","https://b2b.gbm.com.ua/imgp.php?id=166&large=1",null,1,0,1,null,null,null,null,null,null,null,null,null,null,null,"Наушники ",{"$f":"TRIM(LEFT(C13,MIN(IF(IFERROR((CODE(MID(C13,ROW($A$1:$A$99),1))<192)*(MID(C13,ROW($A$1:$A$99),1)<>\" \"),0),ROW($A$1:$A$99),99))-1))","v":"Наушники"}]
[11091,"SDC4/4GBSP","Карта памяти Kingston 4GB NAND Flash microSDHC SD2,0 Class 4 (SDC4/4GBSP)",null,3.54,60,null,"https://b2b.gbm.com.ua/imgb.php?id=11091&large=1",null,null,1,0,1,null,null,null,null,null,null,null,null,null,null,"Карта памяти ","Карта памяти ",{"$f":"TRIM(LEFT(C14,MIN(IF(IFERROR((CODE(MID(C14,ROW($A$1:$A$99),1))<192)*(MID(C14,ROW($A$1:$A$99),1)<>\" \"),0),ROW($A$1:$A$99),99))-1))","v":"Карта памяти"}]
[12123,"CC-SATA-DATA-XL","Кабель (переходник) информационный SATA-DATA HDD Serial ATA / XL 1м (CC-SATA-DATA-XL)",null,0.47,3,null,"https://b2b.gbm.com.ua/imgb.php?id=12123&large=1",null,null,1,0,1,null,null,null,null,null,null,null,null,null,null,null,"Кабель ",{"$f":"TRIM(LEFT(C15,MIN(IF(IFERROR((CODE(MID(C15,ROW($A$1:$A$99),1))<192)*(MID(C15,ROW($A$1:$A$99),1)<>\" \"),0),ROW($A$1:$A$99),99))-1))","v":"Кабель"}]